[Event "Titled Tuesday Blitz February 14 Early 2023"]
[White "Andreikin, Dmitry"]
[Black "Dardha, Daniel"]
[WhiteFideId "4158814"]
[BlackFideId "240990"]
[WhiteElo "2729"]
[BlackElo "2631"]
[Result "1-0"]
[Round "08"]
[TimeControl "180+2"]
[Date "2023.02.14"]
[WhiteClock "0:00:13"]
[BlackClock "0:00:01"]

1. d4 {[%clk 0:03:00]}  Nf6 {[%clk 0:02:58]} 2. c4 {[%clk 0:02:58]}  e6 {[%clk 0:02:54]} 3. Nf3 {[%clk 0:02:58]}  d5 {[%clk 0:02:50]} 4. e3 {[%clk 0:02:52]}  a6 {[%clk 0:02:46]} 5. b3 {[%clk 0:02:48]}  c5 {[%clk 0:02:40]} 6. Bb2 {[%clk 0:02:46]}  cxd4 {[%clk 0:02:40]} 7. exd4 {[%clk 0:02:47]}  Nc6 {[%clk 0:02:38]} 8. Nbd2 {[%clk 0:02:45]}  Be7 {[%clk 0:02:26]} 9. Bd3 {[%clk 0:02:45]}  O-O {[%clk 0:02:25]} 10. Rc1 {[%clk 0:02:39]}  b6 {[%clk 0:02:18]} 11. O-O {[%clk 0:02:39]}  Bb7 {[%clk 0:02:17]} 12. Qe2 {[%clk 0:02:36]}  Re8 {[%clk 0:02:15]} 13. Rfd1 {[%clk 0:02:35]}  Bf8 {[%clk 0:02:14]} 14. a3 {[%clk 0:02:24]}  g6 {[%clk 0:02:08]} 15. Ne5 {[%clk 0:02:14]}  dxc4 {[%clk 0:02:00]} 16. Ndxc4 {[%clk 0:02:11]}  Rc8 {[%clk 0:01:41]} 17. Nxc6 {[%clk 0:02:02]}  Rxc6 {[%clk 0:01:36]} 18. a4 {[%clk 0:01:53]}  Nd5 {[%clk 0:01:16]} 19. Be4 {[%clk 0:01:50]}  Rc8 {[%clk 0:01:14]} 20. g3 {[%clk 0:01:40]}  Rc7 {[%clk 0:00:50]} 21. Ne5 {[%clk 0:01:24]}  Rxc1 {[%clk 0:00:38]} 22. Rxc1 {[%clk 0:01:17]}  Re7 {[%clk 0:00:31]} 23. Ba3 {[%clk 0:01:02]}  Rc7 {[%clk 0:00:26]} 24. Rxc7 {[%clk 0:01:02]}  Qxc7 {[%clk 0:00:23]} 25. Bxf8 {[%clk 0:01:00]}  Kxf8 {[%clk 0:00:22]} 26. Qd2 {[%clk 0:00:50]}  Kg7 {[%clk 0:00:08]} 27. Ng4 {[%clk 0:00:50]}  Qe7 {[%clk 0:00:07]} 28. h4 {[%clk 0:00:45]}  h5 {[%clk 0:00:06]} 29. Qh6+ {[%clk 0:00:41]}  Kg8 {[%clk 0:00:06]} 30. Ne5 {[%clk 0:00:42]}  Qf6 {[%clk 0:00:07]} 31. Nd7 {[%clk 0:00:33]}  Qe7 {[%clk 0:00:06]} 32. Ne5 {[%clk 0:00:28]}  Qf6 {[%clk 0:00:06]} 33. Qc1 {[%clk 0:00:27]}  Qe7 {[%clk 0:00:04]} 34. Qd2 {[%clk 0:00:20]}  Kg7 {[%clk 0:00:05]} 35. Nc4 {[%clk 0:00:18]}  b5 {[%clk 0:00:03]} 36. Ne5 {[%clk 0:00:18]}  bxa4 {[%clk 0:00:03]} 37. bxa4 {[%clk 0:00:19]}  Nf6 {[%clk 0:00:03]} 38. Bxb7 {[%clk 0:00:17]}  Qxb7 {[%clk 0:00:04]} 39. Qc2 {[%clk 0:00:17]}  Nd5 {[%clk 0:00:02]} 40. Kh2 {[%clk 0:00:15]}  Qc7 {[%clk 0:00:01]} 41. Qe2 {[%clk 0:00:13]}  Qb7 {[%clk 0:00:01]} 42. Qf3 {[%clk 0:00:13]} 1-0


[Site "https://www.chess.com"]

[Event "Titled Tuesday Blitz February 14 Early 2023"]
[White "Yeletsky, Ivan"]
[Black "Hansen, Sune Berg"]
[WhiteFideId "24180327"]
[BlackFideId "1400266"]
[WhiteElo "2494"]
[BlackElo "2517"]
[Result "1-0"]
[Round "08"]
[TimeControl "180+2"]
[Date "2023.02.14"]
[WhiteClock "0:00:36"]
[BlackClock "0:00:18"]

1. e4 {[%clk 0:02:55]}  e5 {[%clk 0:02:59]} 2. Nf3 {[%clk 0:02:55]}  Nc6 {[%clk 0:02:59]} 3. Bb5 {[%clk 0:02:54]}  a6 {[%clk 0:02:59]} 4. Ba4 {[%clk 0:02:54]}  Nf6 {[%clk 0:02:59]} 5. d3 {[%clk 0:02:52]}  d6 {[%clk 0:02:57]} 6. c3 {[%clk 0:02:49]}  g6 {[%clk 0:02:55]} 7. Bg5 {[%clk 0:02:48]}  Bg7 {[%clk 0:02:54]} 8. Nbd2 {[%clk 0:02:48]}  h6 {[%clk 0:02:53]} 9. Bh4 {[%clk 0:02:48]}  O-O {[%clk 0:02:46]} 10. Nf1 {[%clk 0:02:47]}  d5 {[%clk 0:02:46]} 11. Qe2 {[%clk 0:02:39]}  b5 {[%clk 0:02:41]} 12. Bb3 {[%clk 0:02:38]}  Be6 {[%clk 0:02:28]} 13. Ne3 {[%clk 0:02:34]}  d4 {[%clk 0:02:00]} 14. Bxe6 {[%clk 0:02:17]}  fxe6 {[%clk 0:01:57]} 15. Nc2 {[%clk 0:02:12]}  dxc3 {[%clk 0:01:33]} 16. bxc3 {[%clk 0:02:13]}  Qd6 {[%clk 0:01:32]} 17. Bxf6 {[%clk 0:02:09]}  Rxf6 {[%clk 0:01:28]} 18. O-O {[%clk 0:02:09]}  Raf8 {[%clk 0:01:27]} 19. Nce1 {[%clk 0:01:46]}  Qa3 {[%clk 0:01:17]} 20. Qd2 {[%clk 0:01:43]}  Rd8 {[%clk 0:01:08]} 21. Rb1 {[%clk 0:01:34]}  Rf7 {[%clk 0:00:57]} 22. Nc2 {[%clk 0:01:33]}  Qc5 {[%clk 0:00:50]} 23. Nb4 {[%clk 0:01:18]}  Nb8 {[%clk 0:00:45]} 24. d4 {[%clk 0:01:09]}  Qc4 {[%clk 0:00:42]} 25. Nd3 {[%clk 0:01:04]}  Nc6 {[%clk 0:00:32]} 26. Nb2 {[%clk 0:00:52]}  Qxa2 {[%clk 0:00:29]} 27. Ra1 {[%clk 0:00:53]}  Qb3 {[%clk 0:00:28]} 28. Rxa6 {[%clk 0:00:53]}  Nb8 {[%clk 0:00:24]} 29. Ra8 {[%clk 0:00:50]}  b4 {[%clk 0:00:20]} 30. cxb4 {[%clk 0:00:41]}  exd4 {[%clk 0:00:19]} 31. Nd3 {[%clk 0:00:40]}  Rff8 {[%clk 0:00:18]} 32. Nc5 {[%clk 0:00:36]} 1-0


[Site "https://www.chess.com"]

[Event "Titled Tuesday Blitz February 14 Early 2023"]
[White "Sokolovsky, Yahli"]
[Black "Grigoriants, Sergey"]
[WhiteFideId "2820242"]
[BlackFideId "4130804"]
[WhiteElo "2461"]
[BlackElo "2562"]
[Result "0-1"]
[Round "08"]
[TimeControl "180+2"]
[Date "2023.02.14"]
[WhiteClock "0:00:01"]
[BlackClock "0:00:06"]

1. b3 {[%clk 0:03:00]}  d5 {[%clk 0:02:58]} 2. e3 {[%clk 0:03:00]}  Bf5 {[%clk 0:02:45]} 3. Bb2 {[%clk 0:02:59]}  e6 {[%clk 0:02:45]} 4. d4 {[%clk 0:03:00]}  Nf6 {[%clk 0:02:44]} 5. Bd3 {[%clk 0:03:00]}  Bd6 {[%clk 0:02:43]} 6. Bxf5 {[%clk 0:02:54]}  exf5 {[%clk 0:02:43]} 7. Qd3 {[%clk 0:02:55]}  Qd7 {[%clk 0:02:41]} 8. Ba3 {[%clk 0:02:56]}  Bxa3 {[%clk 0:02:34]} 9. Nxa3 {[%clk 0:02:57]}  O-O {[%clk 0:02:34]} 10. Nf3 {[%clk 0:02:57]}  g6 {[%clk 0:02:33]} 11. Ne5 {[%clk 0:02:53]}  Qe7 {[%clk 0:02:32]} 12. Nb1 {[%clk 0:02:53]}  Nbd7 {[%clk 0:02:32]} 13. Nxd7 {[%clk 0:02:47]}  Qxd7 {[%clk 0:02:32]} 14. Nd2 {[%clk 0:02:47]}  Rfe8 {[%clk 0:02:31]} 15. O-O {[%clk 0:02:47]}  Ne4 {[%clk 0:02:28]} 16. c4 {[%clk 0:02:47]}  Rad8 {[%clk 0:01:45]} 17. cxd5 {[%clk 0:02:20]}  Qxd5 {[%clk 0:01:43]} 18. Nxe4 {[%clk 0:02:15]}  Rxe4 {[%clk 0:01:41]} 19. Rac1 {[%clk 0:01:59]}  c6 {[%clk 0:01:41]} 20. Qc4 {[%clk 0:01:54]}  f4 {[%clk 0:01:31]} 21. Qxd5 {[%clk 0:01:41]}  Rxd5 {[%clk 0:01:31]} 22. Rfe1 {[%clk 0:01:41]}  fxe3 {[%clk 0:01:31]} 23. fxe3 {[%clk 0:01:42]}  f5 {[%clk 0:01:31]} 24. g3 {[%clk 0:01:40]}  Kf7 {[%clk 0:01:29]} 25. Kf2 {[%clk 0:01:39]}  g5 {[%clk 0:01:29]} 26. Kf3 {[%clk 0:01:36]}  Ke6 {[%clk 0:01:24]} 27. Red1 {[%clk 0:01:36]}  h5 {[%clk 0:01:21]} 28. Rd2 {[%clk 0:01:29]}  h4 {[%clk 0:01:19]} 29. Rdc2 {[%clk 0:01:26]}  Kf6 {[%clk 0:00:52]} 30. Rc5 {[%clk 0:01:23]}  Rd7 {[%clk 0:00:47]} 31. b4 {[%clk 0:01:04]}  Rde7 {[%clk 0:00:44]} 32. R1c3 {[%clk 0:01:04]}  hxg3 {[%clk 0:00:39]} 33. hxg3 {[%clk 0:01:05]}  g4+ {[%clk 0:00:28]} 34. Kf2 {[%clk 0:01:03]}  Rh7 {[%clk 0:00:28]} 35. Kg2 {[%clk 0:00:59]}  Rhe7 {[%clk 0:00:28]} 36. Ra5 {[%clk 0:00:50]}  Rxe3 {[%clk 0:00:24]} 37. Rxe3 {[%clk 0:00:51]}  Rxe3 {[%clk 0:00:24]} 38. Rxa7 {[%clk 0:00:52]}  b5 {[%clk 0:00:22]} 39. Rc7 {[%clk 0:00:49]}  Re2+ {[%clk 0:00:20]} 40. Kf1 {[%clk 0:00:48]}  Rc2 {[%clk 0:00:21]} 41. d5 {[%clk 0:00:46]}  Ke5 {[%clk 0:00:18]} 42. Rxc6 {[%clk 0:00:29]}  Rxc6 {[%clk 0:00:17]} 43. dxc6 {[%clk 0:00:29]}  Kd6 {[%clk 0:00:18]} 44. Ke2 {[%clk 0:00:19]}  Kxc6 {[%clk 0:00:19]} 45. Ke3 {[%clk 0:00:19]}  Kd5 {[%clk 0:00:19]} 46. Kd3 {[%clk 0:00:16]}  Ke5 {[%clk 0:00:17]} 47. Ke3 {[%clk 0:00:17]}  Kd5 {[%clk 0:00:14]} 48. Kd3 {[%clk 0:00:13]}  Ke6 {[%clk 0:00:12]} 49. Kd4 {[%clk 0:00:12]}  Kd6 {[%clk 0:00:13]} 50. Ke3 {[%clk 0:00:07]}  Ke5 {[%clk 0:00:11]} 51. a3 {[%clk 0:00:03]}  f4+ {[%clk 0:00:10]} 52. gxf4+ {[%clk 0:00:04]}  Kf5 {[%clk 0:00:10]} 53. a4 {[%clk 0:00:02]}  bxa4 {[%clk 0:00:10]} 54. b5 {[%clk 0:00:03]}  a3 {[%clk 0:00:11]} 55. b6 {[%clk 0:00:03]}  a2 {[%clk 0:00:11]} 56. b7 {[%clk 0:00:04]}  a1=Q {[%clk 0:00:11]} 57. b8=Q {[%clk 0:00:05]}  Qe1+ {[%clk 0:00:08]} 58. Kd3 {[%clk 0:00:05]}  Qe4+ {[%clk 0:00:08]} 59. Kc3 {[%clk 0:00:05]}  g3 {[%clk 0:00:06]} 60. Qf8+ {[%clk 0:00:04]}  Kg4 {[%clk 0:00:07]} 61. Qg7+ {[%clk 0:00:01]}  Kf3 {[%clk 0:00:07]} 62. f5 {[%clk 0:00:01]}  g2 {[%clk 0:00:03]} 63. f6 {[%clk 0:00:01]}  Qe3+ {[%clk 0:00:04]} 64. Kc4 {[%clk 0:00:01]}  g1=Q {[%clk 0:00:05]} 65. Qb7+ {[%clk 0:00:01]}  Qe4+ {[%clk 0:00:05]} 66. Qxe4+ {[%clk 0:00:01]}  Kxe4 {[%clk 0:00:06]} 0-1


[Site "https://www.chess.com"]

[Event "Titled Tuesday Blitz February 14 Early 2023"]
[White "Pantsulaia, Levan"]
[Black "Klabis, Rokas"]
[WhiteFideId "13602071"]
[BlackFideId "12805246"]
[WhiteElo "2570"]
[BlackElo "2415"]
[Result "1-0"]
[Round "08"]
[TimeControl "180+2"]
[Date "2023.02.14"]
[WhiteClock "0:00:23"]
[BlackClock "0:00:17"]

1. Nf3 {[%clk 0:03:00]}  Nf6 {[%clk 0:02:56]} 2. g3 {[%clk 0:03:00]}  e6 {[%clk 0:02:55]} 3. Bg2 {[%clk 0:03:00]}  d5 {[%clk 0:02:56]} 4. O-O {[%clk 0:03:00]}  Be7 {[%clk 0:02:56]} 5. c4 {[%clk 0:03:00]}  O-O {[%clk 0:02:56]} 6. b3 {[%clk 0:03:01]}  d4 {[%clk 0:02:55]} 7. e3 {[%clk 0:02:57]}  c5 {[%clk 0:02:56]} 8. exd4 {[%clk 0:02:57]}  cxd4 {[%clk 0:02:57]} 9. d3 {[%clk 0:02:58]}  Nc6 {[%clk 0:02:57]} 10. Na3 {[%clk 0:02:58]}  a6 {[%clk 0:02:56]} 11. Nc2 {[%clk 0:02:58]}  e5 {[%clk 0:02:53]} 12. Re1 {[%clk 0:02:57]}  Nd7 {[%clk 0:02:52]} 13. Rb1 {[%clk 0:02:55]}  f6 {[%clk 0:02:28]} 14. b4 {[%clk 0:02:54]}  Re8 {[%clk 0:02:27]} 15. Nh4 {[%clk 0:02:53]}  Nf8 {[%clk 0:02:27]} 16. f4 {[%clk 0:02:45]}  Bd6 {[%clk 0:02:20]} 17. f5 {[%clk 0:02:43]}  Qe7 {[%clk 0:02:05]} 18. Bd5+ {[%clk 0:02:42]}  Kh8 {[%clk 0:02:01]} 19. Qh5 {[%clk 0:02:42]}  g5 {[%clk 0:01:47]} 20. fxg6 {[%clk 0:02:40]}  Be6 {[%clk 0:01:35]} 21. Bxe6 {[%clk 0:02:35]}  Qxe6 {[%clk 0:01:35]} 22. Bh6 {[%clk 0:01:55]}  hxg6 {[%clk 0:01:18]} 23. Nxg6+ {[%clk 0:01:56]}  Nxg6 {[%clk 0:01:18]} 24. Qxg6 {[%clk 0:01:57]}  Rg8 {[%clk 0:01:19]} 25. Qh5 {[%clk 0:01:55]}  Qg4 {[%clk 0:01:17]} 26. Qxg4 {[%clk 0:01:54]}  Rxg4 {[%clk 0:01:18]} 27. Bd2 {[%clk 0:01:50]}  f5 {[%clk 0:01:14]} 28. a4 {[%clk 0:01:38]}  f4 {[%clk 0:01:11]} 29. Re4 {[%clk 0:01:32]}  Rag8 {[%clk 0:01:09]} 30. Kg2 {[%clk 0:01:31]}  Ne7 {[%clk 0:01:03]} 31. c5 {[%clk 0:01:23]}  Nf5 {[%clk 0:00:38]} 32. cxd6 {[%clk 0:01:20]}  Nxg3 {[%clk 0:00:38]} 33. Kf3 {[%clk 0:00:50]}  Nxe4 {[%clk 0:00:36]} 34. Kxe4 {[%clk 0:00:33]}  Rg2 {[%clk 0:00:36]} 35. Nxd4 {[%clk 0:00:26]}  Rxd2 {[%clk 0:00:29]} 36. Ne6 {[%clk 0:00:26]}  f3 {[%clk 0:00:26]} 37. d7 {[%clk 0:00:25]}  f2 {[%clk 0:00:23]} 38. Rf1 {[%clk 0:00:24]}  Rb2 {[%clk 0:00:15]} 39. d8=Q {[%clk 0:00:22]}  Rxd8 {[%clk 0:00:15]} 40. Nxd8 {[%clk 0:00:22]}  Rxb4+ {[%clk 0:00:16]} 41. Kxe5 {[%clk 0:00:22]}  Rxa4 {[%clk 0:00:17]} 42. Rxf2 {[%clk 0:00:23]} 1-0


[Site "https://www.chess.com"]

[Event "Titled Tuesday Blitz February 14 Early 2023"]
[White "Weetik, Vjacheslav"]
[Black "Pakleza, Zbigniew"]
[WhiteFideId "4153472"]
[BlackFideId "1119290"]
[WhiteElo "2423"]
[BlackElo "2494"]
[Result "0-1"]
[Round "08"]
[TimeControl "180+2"]
[Date "2023.02.14"]
[WhiteClock "0:00:06"]
[BlackClock "0:00:07"]

1. d4 {[%clk 0:02:59]}  d6 {[%clk 0:02:58]} 2. e4 {[%clk 0:02:59]}  Nf6 {[%clk 0:02:58]} 3. Nc3 {[%clk 0:03:00]}  c6 {[%clk 0:02:58]} 4. Nf3 {[%clk 0:02:55]}  Bg4 {[%clk 0:02:58]} 5. Be2 {[%clk 0:02:56]}  e6 {[%clk 0:02:58]} 6. O-O {[%clk 0:02:50]}  Be7 {[%clk 0:02:57]} 7. Ng5 {[%clk 0:02:36]}  Bxe2 {[%clk 0:02:56]} 8. Qxe2 {[%clk 0:02:37]}  h6 {[%clk 0:02:56]} 9. Nh3 {[%clk 0:02:35]}  d5 {[%clk 0:02:54]} 10. e5 {[%clk 0:02:31]}  Nfd7 {[%clk 0:02:54]} 11. Qg4 {[%clk 0:02:30]}  g6 {[%clk 0:02:48]} 12. Nf4 {[%clk 0:02:25]}  h5 {[%clk 0:02:42]} 13. Qh3 {[%clk 0:02:17]}  Nf8 {[%clk 0:02:35]} 14. Be3 {[%clk 0:01:58]}  Nbd7 {[%clk 0:02:30]} 15. a4 {[%clk 0:01:32]}  Qb6 {[%clk 0:01:51]} 16. a5 {[%clk 0:01:08]}  Qxb2 {[%clk 0:01:45]} 17. Nce2 {[%clk 0:00:31]}  Qxc2 {[%clk 0:01:23]} 18. a6 {[%clk 0:00:31]}  bxa6 {[%clk 0:01:24]} 19. Rfc1 {[%clk 0:00:27]}  Qb2 {[%clk 0:00:49]} 20. Nc3 {[%clk 0:00:20]}  Qb7 {[%clk 0:00:33]} 21. Rab1 {[%clk 0:00:18]}  Nb6 {[%clk 0:00:29]} 22. Na4 {[%clk 0:00:14]}  Qc7 {[%clk 0:00:16]} 23. Nc5 {[%clk 0:00:14]}  Qc8 {[%clk 0:00:17]} 24. Nfd3 {[%clk 0:00:14]}  a5 {[%clk 0:00:14]} 25. Qg3 {[%clk 0:00:14]}  Nc4 {[%clk 0:00:11]} 26. Bg5 {[%clk 0:00:13]}  Rb8 {[%clk 0:00:05]} 27. Bxe7 {[%clk 0:00:12]}  Kxe7 {[%clk 0:00:05]} 28. Qg5+ {[%clk 0:00:13]}  Ke8 {[%clk 0:00:05]} 29. Qf6 {[%clk 0:00:10]}  Rg8 {[%clk 0:00:05]} 30. h4 {[%clk 0:00:11]}  Nb6 {[%clk 0:00:03]} 31. Qg5 {[%clk 0:00:06]}  Qd8 {[%clk 0:00:01]} 32. Qg3 {[%clk 0:00:05]}  Qc8 {[%clk 0:00:01]} 33. Ra1 {[%clk 0:00:06]}  a4 {[%clk 0:00:01]} 34. Nxa4 {[%clk 0:00:06]}  Nxa4 {[%clk 0:00:01]} 35. Rxa4 {[%clk 0:00:07]}  a6 {[%clk 0:00:01]} 36. Ra2 {[%clk 0:00:05]}  Nd7 {[%clk 0:00:02]} 37. Rac2 {[%clk 0:00:06]}  Rb6 {[%clk 0:00:02]} 38. Nf4 {[%clk 0:00:06]}  Qb7 {[%clk 0:00:02]} 39. Nxh5 {[%clk 0:00:07]}  Kd8 {[%clk 0:00:01]} 40. Nf4 {[%clk 0:00:06]}  Kc7 {[%clk 0:00:02]} 41. Qg5 {[%clk 0:00:06]}  Qc8 {[%clk 0:00:01]} 42. Qe7 {[%clk 0:00:06]}  Qf8 {[%clk 0:00:01]} 43. Qg5 {[%clk 0:00:03]}  Rh8 {[%clk 0:00:02]} 44. g3 {[%clk 0:00:03]}  Qd8 {[%clk 0:00:02]} 45. Qg4 {[%clk 0:00:03]}  Qe7 {[%clk 0:00:03]} 46. Nd3 {[%clk 0:00:03]}  a5 {[%clk 0:00:03]} 47. Qf4 {[%clk 0:00:04]}  Ra8 {[%clk 0:00:03]} 48. Ra1 {[%clk 0:00:03]}  a4 {[%clk 0:00:03]} 49. Rca2 {[%clk 0:00:03]}  Rb3 {[%clk 0:00:03]} 50. Qd2 {[%clk 0:00:03]}  a3 {[%clk 0:00:03]} 51. Qc2 {[%clk 0:00:04]}  Rab8 {[%clk 0:00:03]} 52. Rxa3 {[%clk 0:00:04]}  Rxa3 {[%clk 0:00:03]} 53. Rc1 {[%clk 0:00:04]}  Ra6 {[%clk 0:00:03]} 54. Qc3 {[%clk 0:00:04]}  Qa3 {[%clk 0:00:03]} 55. Qd2 {[%clk 0:00:03]}  Rb3 {[%clk 0:00:02]} 56. Rd1 {[%clk 0:00:04]}  Rxd3 {[%clk 0:00:02]} 57. Qxd3 {[%clk 0:00:05]}  Qxd3 {[%clk 0:00:03]} 58. Rxd3 {[%clk 0:00:05]}  Ra4 {[%clk 0:00:03]} 59. g4 {[%clk 0:00:06]}  Kd8 {[%clk 0:00:04]} 60. h5 {[%clk 0:00:06]}  gxh5 {[%clk 0:00:05]} 61. gxh5 {[%clk 0:00:07]}  Ke7 {[%clk 0:00:05]} 62. h6 {[%clk 0:00:07]}  Ra8 {[%clk 0:00:05]} 63. Rh3 {[%clk 0:00:07]}  Rh8 {[%clk 0:00:06]} 64. Kf1 {[%clk 0:00:06]}  c5 {[%clk 0:00:06]} 65. dxc5 {[%clk 0:00:06]}  Nxe5 {[%clk 0:00:07]} 0-1


[Site "https://www.chess.com"]

[Event "Titled Tuesday Blitz February 14 Early 2023"]
[White "Dobrikov, Marco"]
[Black "Orozbaev, Eldiar"]
[WhiteFideId "12950378"]
[BlackFideId "13802240"]
[WhiteElo "2269"]
[BlackElo "2235"]
[Result "0-1"]
[Round "08"]
[TimeControl "180+2"]
[Date "2023.02.14"]
[WhiteClock "0:01:44"]
[BlackClock "0:01:38"]

1. d4 {[%clk 0:03:00]}  Nf6 {[%clk 0:02:59]} 2. Bf4 {[%clk 0:03:00]}  c5 {[%clk 0:02:57]} 3. e3 {[%clk 0:03:01]}  e6 {[%clk 0:02:56]} 4. c3 {[%clk 0:03:01]}  Nc6 {[%clk 0:02:54]} 5. Nf3 {[%clk 0:03:01]}  d5 {[%clk 0:02:55]} 6. Be2 {[%clk 0:03:01]}  Bd6 {[%clk 0:02:55]} 7. Bxd6 {[%clk 0:03:01]}  Qxd6 {[%clk 0:02:56]} 8. Nbd2 {[%clk 0:03:01]}  O-O {[%clk 0:02:54]} 9. O-O {[%clk 0:03:00]}  e5 {[%clk 0:02:54]} 10. dxe5 {[%clk 0:02:59]}  Nxe5 {[%clk 0:02:55]} 11. Nxe5 {[%clk 0:03:00]}  Qxe5 {[%clk 0:02:56]} 12. Nf3 {[%clk 0:03:00]}  Qc7 {[%clk 0:02:56]} 13. h3 {[%clk 0:02:58]}  Be6 {[%clk 0:02:56]} 14. Qc2 {[%clk 0:02:53]}  Rad8 {[%clk 0:02:56]} 15. Rad1 {[%clk 0:02:53]}  Rfe8 {[%clk 0:02:52]} 16. Bd3 {[%clk 0:02:50]}  a6 {[%clk 0:02:49]} 17. a4 {[%clk 0:02:50]}  b5 {[%clk 0:02:44]} 18. axb5 {[%clk 0:02:48]}  c4 {[%clk 0:02:44]} 19. Be2 {[%clk 0:02:45]}  axb5 {[%clk 0:02:44]} 20. Nd4 {[%clk 0:02:45]}  Qb6 {[%clk 0:02:44]} 21. Ra1 {[%clk 0:02:44]}  Ra8 {[%clk 0:02:41]} 22. Bf3 {[%clk 0:02:44]}  Nd7 {[%clk 0:02:32]} 23. b4 {[%clk 0:02:38]}  Ne5 {[%clk 0:02:29]} 24. Be2 {[%clk 0:02:36]}  Bd7 {[%clk 0:02:22]} 25. Ra2 {[%clk 0:02:28]}  Nc6 {[%clk 0:02:17]} 26. Rfa1 {[%clk 0:02:27]}  Nxd4 {[%clk 0:02:16]} 27. exd4 {[%clk 0:02:28]}  Rad8 {[%clk 0:02:15]} 28. Ra6 {[%clk 0:02:24]}  Qc7 {[%clk 0:02:15]} 29. Qd2 {[%clk 0:02:23]}  Re6 {[%clk 0:02:10]} 30. Ra7 {[%clk 0:02:23]}  Qd6 {[%clk 0:02:10]} 31. Bf3 {[%clk 0:02:17]}  Rde8 {[%clk 0:02:04]} 32. R1a6 {[%clk 0:01:44]}  Re1+ {[%clk 0:01:37]} 33. Qxe1 {[%clk 0:01:44]}  Rxe1# {[%clk 0:01:38]} 0-1


[Site "https://www.chess.com"]

[Event "Titled Tuesday Blitz February 14 Early 2023"]
[White "Shapiro, Viktor"]
[Black "Ahmadzada, Ahmad"]
[WhiteFideId "4175700"]
[BlackFideId "13413007"]
[WhiteElo "2192"]
[BlackElo "2488"]
[Result "0-1"]
[Round "08"]
[TimeControl "180+2"]
[Date "2023.02.14"]
[WhiteClock "0:00:24"]
[BlackClock "0:00:08"]

1. c4 {[%clk 0:03:00]}  Nf6 {[%clk 0:02:58]} 2. Nc3 {[%clk 0:03:01]}  g6 {[%clk 0:02:59]} 3. g3 {[%clk 0:03:01]}  Bg7 {[%clk 0:02:59]} 4. Bg2 {[%clk 0:03:02]}  O-O {[%clk 0:03:00]} 5. Nf3 {[%clk 0:03:02]}  c5 {[%clk 0:03:01]} 6. O-O {[%clk 0:03:02]}  Nc6 {[%clk 0:03:02]} 7. d3 {[%clk 0:03:02]}  b6 {[%clk 0:02:59]} 8. a3 {[%clk 0:03:02]}  Bb7 {[%clk 0:03:00]} 9. Rb1 {[%clk 0:03:03]}  d5 {[%clk 0:02:41]} 10. cxd5 {[%clk 0:03:03]}  Nxd5 {[%clk 0:02:41]} 11. Nxd5 {[%clk 0:03:04]}  Qxd5 {[%clk 0:02:41]} 12. b4 {[%clk 0:03:04]}  cxb4 {[%clk 0:02:31]} 13. axb4 {[%clk 0:03:04]}  b5 {[%clk 0:02:31]} 14. Be3 {[%clk 0:03:03]}  Qd7 {[%clk 0:02:27]} 15. Bc5 {[%clk 0:03:02]}  Rfc8 {[%clk 0:02:22]} 16. d4 {[%clk 0:02:56]}  a5 {[%clk 0:02:18]} 17. bxa5 {[%clk 0:02:55]}  Nxa5 {[%clk 0:02:19]} 18. Qd3 {[%clk 0:02:41]}  Nc4 {[%clk 0:02:12]} 19. Rfd1 {[%clk 0:02:36]}  e5 {[%clk 0:02:02]} 20. Qb3 {[%clk 0:02:30]}  e4 {[%clk 0:01:58]} 21. Ne5 {[%clk 0:02:18]}  Bxe5 {[%clk 0:01:15]} 22. dxe5 {[%clk 0:02:17]}  Nd2 {[%clk 0:01:15]} 23. Qb4 {[%clk 0:01:58]}  Ra4 {[%clk 0:00:57]} 24. Qxb5 {[%clk 0:01:32]}  Qxb5 {[%clk 0:00:50]} 25. Rxb5 {[%clk 0:01:32]}  Ba6 {[%clk 0:00:48]} 26. Rb4 {[%clk 0:01:25]}  Bxe2 {[%clk 0:00:37]} 27. Rxa4 {[%clk 0:01:07]}  Bxd1 {[%clk 0:00:36]} 28. Rd4 {[%clk 0:01:05]}  Rxc5 {[%clk 0:00:24]} 29. Rxd2 {[%clk 0:01:04]}  Rc1 {[%clk 0:00:20]} 30. Bf1 {[%clk 0:00:56]}  Bf3 {[%clk 0:00:18]} 31. h3 {[%clk 0:00:47]}  h5 {[%clk 0:00:18]} 32. h4 {[%clk 0:00:27]}  Kf8 {[%clk 0:00:18]} 33. Ra2 {[%clk 0:00:23]}  Ke7 {[%clk 0:00:17]} 34. Rb2 {[%clk 0:00:17]}  Ke6 {[%clk 0:00:16]} 35. Rd2 {[%clk 0:00:18]}  Kxe5 {[%clk 0:00:15]} 36. Rb2 {[%clk 0:00:18]}  f6 {[%clk 0:00:13]} 37. Rd2 {[%clk 0:00:19]}  g5 {[%clk 0:00:13]} 38. hxg5 {[%clk 0:00:18]}  fxg5 {[%clk 0:00:13]} 39. Ra2 {[%clk 0:00:19]}  h4 {[%clk 0:00:13]} 40. gxh4 {[%clk 0:00:19]}  gxh4 {[%clk 0:00:13]} 41. Rb2 {[%clk 0:00:16]}  Kf4 {[%clk 0:00:10]} 42. Rb8 {[%clk 0:00:15]}  Be2 {[%clk 0:00:07]} 43. Rf8+ {[%clk 0:00:15]}  Ke5 {[%clk 0:00:07]} 44. Re8+ {[%clk 0:00:15]}  Kf5 {[%clk 0:00:05]} 45. Rf8+ {[%clk 0:00:16]}  Kg6 {[%clk 0:00:06]} 46. Rf4 {[%clk 0:00:15]}  Bxf1 {[%clk 0:00:05]} 47. Kh2 {[%clk 0:00:13]}  Bd3 {[%clk 0:00:03]} 48. Rxh4 {[%clk 0:00:13]}  Kf5 {[%clk 0:00:02]} 49. Rh8 {[%clk 0:00:13]}  Rc3 {[%clk 0:00:03]} 50. Rf8+ {[%clk 0:00:13]}  Ke5 {[%clk 0:00:04]} 51. Kg3 {[%clk 0:00:13]}  Be2+ {[%clk 0:00:04]} 52. Kg2 {[%clk 0:00:13]}  Bf3+ {[%clk 0:00:04]} 53. Kh2 {[%clk 0:00:14]}  Rc1 {[%clk 0:00:04]} 54. Re8+ {[%clk 0:00:13]}  Kf5 {[%clk 0:00:04]} 55. Rf8+ {[%clk 0:00:14]}  Kg5 {[%clk 0:00:05]} 56. Rg8+ {[%clk 0:00:14]}  Kf6 {[%clk 0:00:06]} 57. Rf8+ {[%clk 0:00:15]}  Ke5 {[%clk 0:00:06]} 58. Re8+ {[%clk 0:00:15]}  Kd4 {[%clk 0:00:07]} 59. Rd8+ {[%clk 0:00:15]}  Kc3 {[%clk 0:00:06]} 60. Kg3 {[%clk 0:00:16]}  Rg1+ {[%clk 0:00:05]} 61. Kf4 {[%clk 0:00:17]}  Rg2 {[%clk 0:00:05]} 62. Ke3 {[%clk 0:00:17]}  Rg1 {[%clk 0:00:05]} 63. Rc8+ {[%clk 0:00:17]}  Kb4 {[%clk 0:00:06]} 64. Rd8 {[%clk 0:00:17]}  Re1+ {[%clk 0:00:06]} 65. Kf4 {[%clk 0:00:18]}  Re2 {[%clk 0:00:07]} 66. Kg3 {[%clk 0:00:19]}  Kc5 {[%clk 0:00:07]} 67. Rd7 {[%clk 0:00:19]}  Kc6 {[%clk 0:00:07]} 68. Rd8 {[%clk 0:00:19]}  Re1 {[%clk 0:00:07]} 69. Rd2 {[%clk 0:00:19]}  Rc1 {[%clk 0:00:06]} 70. Rd4 {[%clk 0:00:19]}  Rc5 {[%clk 0:00:07]} 71. Kf4 {[%clk 0:00:19]}  Rd5 {[%clk 0:00:07]} 72. Rc4+ {[%clk 0:00:19]}  Kd6 {[%clk 0:00:08]} 73. Ra4 {[%clk 0:00:20]}  Rd2 {[%clk 0:00:08]} 74. Ra6+ {[%clk 0:00:21]}  Kc7 {[%clk 0:00:08]} 75. Kg3 {[%clk 0:00:21]}  Rd6 {[%clk 0:00:06]} 76. Ra5 {[%clk 0:00:21]}  Kd7 {[%clk 0:00:06]} 77. Kf4 {[%clk 0:00:21]}  Rd2 {[%clk 0:00:04]} 78. Kg3 {[%clk 0:00:21]}  Ke6 {[%clk 0:00:04]} 79. Rb5 {[%clk 0:00:21]}  Rd5 {[%clk 0:00:04]} 80. Rb4 {[%clk 0:00:21]}  Ke5 {[%clk 0:00:05]} 81. Rb8 {[%clk 0:00:21]}  Kd4 {[%clk 0:00:05]} 82. Rb4+ {[%clk 0:00:22]}  Kd3 {[%clk 0:00:04]} 83. Kf4 {[%clk 0:00:22]}  Ke2 {[%clk 0:00:04]} 84. Rb2+ {[%clk 0:00:22]}  Rd2 {[%clk 0:00:05]} 85. Rxd2+ {[%clk 0:00:23]}  Kxd2 {[%clk 0:00:05]} 86. Kg3 {[%clk 0:00:23]}  Ke2 {[%clk 0:00:06]} 87. Kh2 {[%clk 0:00:23]}  Kxf2 {[%clk 0:00:06]} 88. Kh3 {[%clk 0:00:24]}  e3 {[%clk 0:00:07]} 89. Kh4 {[%clk 0:00:24]}  e2 {[%clk 0:00:08]} 0-1


[Site "https://www.chess.com"]